fUSD/lending_fUSD_20240427
["ID","MTS","AMOUNT","RATE_DAILY","PERIOD"]
[323764004,1714257032614,-250.0,0.00011426,2]
[323764005,1714257032623,-155.18,0.00011456,10]
[323764006,1714257032634,-3310.08,0.00011472,2]
[323764007,1714257032644,-1064.82,0.00011533,2]
[323764008,1714257032653,-150.0,0.00011587,2]
[323764009,1714257032663,-156.62,0.0001162,2]
[323764010,1714257032673,-191.48,0.00011652,2]
[323764012,1714257032683,-749.63590295,0.00011698,2]
[323764014,1714257032693,-499.99,0.00011745,2]
[323764016,1714257032703,-156.62,0.00011822,2]
[323764018,1714257032714,-1118.76,0.00011845,2]
[323764020,1714257032724,-508.65,0.00011884,2]
[323764022,1714257032734,-156.62,0.00012023,2]
[323764024,1714257032745,-156.62,0.00012225,2]
[323764026,1714257032755,-1108.93696765,0.00012288,2]
[323764028,1714257032767,-624.0,0.00012301,2]
[323764031,1714257032778,-200.7089839,0.00012348,2]
[323764033,1714257032788,-2796.65461008,0.00012349,2]
[323764034,1714257032798,-313.36259302,0.00012799,2]
[323764037,1714257032809,-68166.18047454,0.000128,2]
[323764039,1714257032819,-158.563,0.000129,2]
[323764040,1714257032830,-1154.4548,0.000129,2]
[323764042,1714257032839,-7500.0,0.000129,2]
[323764044,1714257032849,-2927.20447672,0.000129,2]
[323764046,1714257032859,-2500.0,0.000129,2]
[323764048,1714257032868,-535.02688086,0.000129,2]
[323764049,1714257032878,-13578.91122462,0.000129,2]
[323764050,1714257032887,-624.0,0.00012986,2]
[323764051,1714257032897,-404.56209638,0.00012998,2]
[323764052,1714257032907,-317.01746459,0.00012998,2]
[323764053,1714257032915,-873.32290242,0.00012998,2]
[323764054,1714257032925,-210.40439846,0.00012998,2]
[323764055,1714257032935,-559.09735674,0.00012998,2]
[323764056,1714257032945,-1994.86165644,0.00012998,2]
[323764057,1714257032955,-500.0,0.00012998,2]
[323764058,1714257032964,-191.83505497,0.00012999,2]
[323764059,1714257032973,-1383.04297193,0.00012999,2]
[323764060,1714257032985,-7358.84,0.00012999,2]
[323764061,1714257032995,-7358.84,0.00012999,2]
[323764062,1714257033006,-346575.46345197,0.00013,2]
[323764063,1714257033018,-81978.70617402,0.00013,2]
[323764064,1714257033030,-30679.999987,0.00013,2]
[323764065,1714257033043,-2214.06189973,0.00013,2]
[323764066,1714257033056,-1450.28399832,0.00013,2]
[323764067,1714257033067,-6450.0,0.00013,2]
[323764068,1714257033078,-258.128903,0.00013,2]
[323764069,1714257033090,-266.27999998,0.00013,2]
[323764070,1714257033105,-752.4458828,0.00013,2]
[323764071,1714257033117,-404.0000001,0.00013,2]
[323764072,1714257033131,-326.34,0.00013,2]
[323764073,1714257033146,-420.0,0.00013,2]
[323764074,1714257033159,-2417.59688237,0.00013,2]
[323764075,1714257033184,-494.10488114,0.00013,2]
[323764076,1714257033198,-306.8894988,0.00013,2]
[323764077,1714257033212,-574.25050338,0.00013,2]
[323764078,1714257033381,-956.33828,0.00013,2]
[323764079,1714257033393,-768.59427376,0.00013,2]
[323764080,1714257033405,-18112.81597109,0.00013,2]
[323764081,1714257033432,-5107.4353723,0.00013,2]
[323764082,1714257033447,-299.68,0.00013,2]
[323764083,1714257033459,-920.0,0.00013,2]
[323764084,1714257033482,-704.62238723,0.00013,2]
[323764085,1714257033505,-6344.0,0.00013,2]
[323764086,1714257033519,-12770.70185429,0.00013,2]
[323764087,1714257033532,-3746.38281553,0.00013,2]
[323764088,1714257033546,-6481.68123966,0.00013,2]
[323764089,1714257033559,-1997.4276,0.00013,2]
[323764090,1714257033572,-1042.16772,0.00013,2]
[323764091,1714257033585,-1309.51,0.00013,2]
[323764092,1714257033597,-1486.7837916,0.00013,2]
[323764093,1714257033611,-647.77,0.00013,2]
[323764094,1714257033642,-1848.61575999,0.00013,2]
[323764095,1714257033655,-2121.37763752,0.00013,2]
[323764096,1714257033669,-1194.85289494,0.00013,2]
[323764097,1714257033682,-3971.0701764,0.00013,2]
[323764098,1714257033695,-261.36402809,0.00013,2]
[323764099,1714257033708,-3025.0,0.00013,2]
[323764100,1714257033721,-4995.6476831,0.00013,2]
[323764115,1714257038181,-366.83172432,8.896e-05,2]
[323764116,1714257038193,-875.67051597,8.896e-05,2]
[323764117,1714257038203,-4896.05301553,0.00013,2]
[323764118,1714257038216,-1522.56594384,0.00013,2]
[323764119,1714257038240,-3695.16906961,0.00013,2]
[323764120,1714257038252,-1220.668012,0.00013,2]
[323764121,1714257038263,-93569.88994095,0.00013,2]
[323764122,1714257038274,-1562.91945283,0.00013,2]
[323764123,1714257038285,-3487.91076185,0.00013,2]
[323764124,1714257038296,-4384.87269119,0.00013,2]
[323764125,1714257038308,-13490.58566218,0.00013,2]
[323764126,1714257038348,-313.18496432,0.00013,2]
[323764127,1714257038360,-1801.00246637,0.00013,2]
[323764128,1714257038371,-2998.34830415,0.00013,2]
[323764129,1714257038383,-577.69928284,0.00013,2]
[323764130,1714257038429,-446637.98116579,0.00013,2]
[323764131,1714257038441,-2310922.86113752,0.00013,2]
[323764133,1714257038450,-417.90886388,0.00013,2]
[323764135,1714257038460,-2000.0,0.00013,2]
[323764136,1714257038472,-2000.0,0.00013,2]
[323764137,1714257038481,-155.12499905,0.00013,2]
[323764138,1714257038492,-3000.0,0.00013,2]
[323764139,1714257038501,-164.64,0.00013118,2]
[323764140,1714257038514,-501.86,0.00013151,2]
[323764141,1714257038524,-365.35,0.00013151,2]
[323764142,1714257038534,-722.69,0.00013151,2]
[323764143,1714257038548,-602.24,0.00013151,2]
[323764144,1714257038559,-501.87,0.00013151,2]
[323764147,1714257038568,-418.22,0.00013151,2]
[323764150,1714257038577,-348.52,0.00013151,2]
[323764153,1714257038586,-1556.64900481,0.0001317,2]
[323764156,1714257038596,-3471.54256328,0.00013321,2]
[323764157,1714257038606,-156.28,0.00013345,2]
[323764159,1714257038615,-508.65,0.0001337,2]
[323764161,1714257038624,-7139.48,0.00013425,2]
[323764162,1714257038634,-3471.54256328,0.00013461,2]
[323764163,1714257038643,-1556.64900481,0.00013547,2]
[323764164,1714257038652,-624.0,0.00013671,2]
[323764165,1714257038661,-200.0,0.00013699,2]
[323764166,1714257038670,-200.0,0.00013699,2]
[323764167,1714257038680,-200.0,0.00013699,2]
[323764168,1714257038689,-200.0,0.00013699,2]
[323764169,1714257038698,-200.0,0.00013699,2]
[323764170,1714257038707,-200.0,0.00013699,2]
[323764171,1714257038717,-200.0,0.00013699,2]
[323764172,1714257038726,-2751.0,0.00013699,2]
[323764173,1714257038735,-1000.0,0.00013699,2]
[323764174,1714257038745,-200.0,0.00013699,2]
[323764175,1714257038754,-500.0,0.00013699,2]
[323764176,1714257038763,-250.0,0.00013699,2]
[323764177,1714257038773,-3876.27,0.000137,2]
[323764178,1714257038782,-3876.27,0.000137,2]
[323764179,1714257038792,-3876.27,0.000137,2]
[323764180,1714257038802,-3876.27,0.000137,2]
[323764181,1714257038812,-3876.27,0.000137,2]
[323764182,1714257038821,-3471.54256328,0.00013718,2]
[323764183,1714257038831,-1556.64900481,0.00013831,2]
[323764184,1714257038840,-800.0,0.00013973,2]
[323764185,1714257038850,-263.17762148,0.00013998,2]
[323764186,1714257038859,-33534.72498322,0.00013999,2]
[323764187,1714257038869,-2000.0,0.00014,2]
[323764188,1714257038878,-2000.0,0.00014,2]
[323764189,1714257038887,-150.85,0.00014,2]
[323764190,1714257038897,-150.85,0.00014,2]
[323764191,1714257038907,-150.85,0.00014,2]
[323764192,1714257038916,-150.85,0.00014,2]
[323764193,1714257038925,-150.85,0.00014,2]
[323764194,1714257038934,-150.85,0.00014,2]
[323764195,1714257038944,-150.85,0.00014,2]
[323764196,1714257038953,-150.85,0.00014,2]
[323764197,1714257038962,-150.85,0.00014,2]
[323764198,1714257038971,-150.85,0.00014,2]
[323764199,1714257038980,-150.85,0.00014,2]
[323764200,1714257038989,-150.85,0.00014,2]
[323764201,1714257038998,-150.85,0.00014,2]
[323764202,1714257039007,-150.85,0.00014,2]
[323764203,1714257039017,-150.85,0.00014,2]
[323764204,1714257039025,-150.85,0.00014,2]
[323764205,1714257039034,-150.85,0.00014,2]
[323764206,1714257039043,-150.85,0.00014,2]
[323764207,1714257039053,-150.85,0.00014,2]
[323764208,1714257039062,-150.85,0.00014,2]
[323764209,1714257039071,-150.85,0.00014,2]
[323764210,1714257039081,-150.85,0.00014,2]
[323764211,1714257039091,-150.85,0.00014,2]
[323764212,1714257039101,-150.85,0.00014,2]
[323764213,1714257039111,-150.85,0.00014,2]
[323764214,1714257039120,-150.85,0.00014,2]
[323764215,1714257039129,-150.85,0.00014,2]
[323764216,1714257039138,-150.85,0.00014,2]
[323764217,1714257039147,-150.85,0.00014,2]
[323764218,1714257039156,-150.85,0.00014,2]
[323764219,1714257039166,-150.85,0.00014,2]
[323764220,1714257039175,-150.85,0.00014,2]
[323764221,1714257039184,-150.85,0.00014,2]
[323764222,1714257039194,-150.85,0.00014,2]
[323764223,1714257039204,-150.85,0.00014,2]
[323764224,1714257039213,-150.85,0.00014,2]
[323764225,1714257039223,-150.85,0.00014,2]
[323764226,1714257039233,-150.85,0.00014,2]
[323764227,1714257039244,-150.85,0.00014,2]
[323764228,1714257039254,-150.85,0.00014,2]
[323764229,1714257039264,-150.85,0.00014,2]
[323764230,1714257039274,-150.85,0.00014,2]
[323764231,1714257039283,-150.85,0.00014,2]
[323764232,1714257039293,-150.85,0.00014,2]
[323764233,1714257039303,-150.85,0.00014,2]
[323764234,1714257039312,-150.85,0.00014,2]
[323764235,1714257039322,-150.85,0.00014,2]
[323764236,1714257039331,-150.85,0.00014,2]
[323764237,1714257039340,-150.85,0.00014,2]
[323764238,1714257039351,-150.85,0.00014,2]
[323764239,1714257039360,-150.85,0.00014,2]
[323764240,1714257039369,-150.85,0.00014,2]
[323764241,1714257039379,-150.85,0.00014,2]
[323764242,1714257039390,-150.85,0.00014,2]
[323764243,1714257039399,-150.85,0.00014,2]
[323764244,1714257039408,-150.85,0.00014,2]
[323764245,1714257039417,-150.85,0.00014,2]
[323764246,1714257039426,-150.85,0.00014,2]
[323764247,1714257039438,-150.85,0.00014,2]
[323764248,1714257039449,-150.85,0.00014,2]
[323764249,1714257039460,-150.85,0.00014,2]
[323764250,1714257039472,-150.85,0.00014,2]
[323764251,1714257039481,-150.85,0.00014,2]
[323764252,1714257039490,-1556.64900481,0.0001401,2]
[323764253,1714257039500,-200.0,0.00014089,2]
[323764254,1714257039513,-200.0,0.00014089,2]
[323764255,1714257039525,-1118.76,0.00014109,2]
[323764256,1714257039536,-3471.54256328,0.00014136,2]
[323764257,1714257039546,-1064.82,0.00014273,2]
[323764258,1714257039556,-535.02688076,0.0001432,2]
[323764259,1714257039565,-624.0,0.00014356,2]
[323764260,1714257039574,-200.0,0.00014487,2]
[323764261,1714257039584,-200.0,0.00014487,2]
[323764262,1714257039593,-2927.2044767,0.00014525,2]
[323764263,1714257039604,-191.48,0.00014565,2]
[323764264,1714257039614,-200.0,0.00014685,2]
[323764265,1714257039624,-508.65,0.00014855,2]
[323764266,1714257039633,-382.94500304,0.000149,2]
[323764267,1714257039642,-12871.56433779,0.000149,2]
[323764268,1714257039652,-191.49563012,0.00015,2]
[323764269,1714257039661,-8583.83794955,0.00015,2]
[323764270,1714257039670,-155.0,0.00015,2]
[323764271,1714257039680,-1185.29233321,0.00015,2]
[323764272,1714257039689,-200.0,0.00015,2]
[323764273,1714257039699,-2000.0,0.00015,2]
[323764274,1714257039708,-483.0,0.00015,2]
[323764275,1714257039718,-10154.0,0.00015,2]
[323764276,1714257039728,-624.4,0.00015,2]
[323764277,1714257039737,-1013.82,0.00015,2]
[323764278,1714257039747,-313.7,0.00015,2]
[323764279,1714257039756,-624.0,0.00015041,2]
[323764280,1714257039766,-300.0,0.00015068,2]
[323764281,1714257039775,-790.0,0.00015083,2]
[323764282,1714257039784,-644.0,0.00015083,2]
[323764283,1714257039794,-790.0,0.00015239,2]
[323764284,1714257039803,-644.0,0.00015239,2]
[323764285,1714257039813,-200.0,0.00015282,2]
[323764286,1714257039823,-200.0,0.00015282,2]
[323764287,1714257039832,-1000.0,0.00015282,2]
[323764288,1714257039842,-200.0,0.00015282,2]
[323764289,1714257039851,-790.0,0.00015394,2]
[323764290,1714257039860,-644.0,0.00015394,2]
[323764291,1714257039869,-155.0,0.000155,2]
[323764292,1714257039879,-150.0,0.000155,2]
[323764293,1714257039889,-150.0,0.000155,2]
[323764294,1714257039899,-790.0,0.0001555,2]
[323764295,1714257039909,-557.53515883,0.0001555,2]
[323764296,1714257039918,-1113.83422929,0.0001555,2]
[323764297,1714257039928,-644.0,0.0001555,2]
[323764298,1714257039938,-790.0,0.00015705,2]
[323764299,1714257039948,-644.0,0.00015705,2]
[323764300,1714257039958,-624.0,0.00015726,2]
[323764301,1714257039967,-535.02688076,0.0001574,2]
[323764302,1714257039977,-167.0,0.00015831,2]
[323764303,1714257039987,-790.0,0.00015861,2]
[323764304,1714257039997,-644.0,0.00015861,2]
[323764305,1714257040006,-200.0,0.00015878,2]
[323764306,1714257040015,-1013.82,0.00015995,2]
[323764307,1714257040026,-2000.0,0.00016,2]
[323764308,1714257040036,-150.0,0.00016,2]
[323764309,1714257040046,-150.0,0.00016,2]
[323764310,1714257040058,-150.0,0.00016,2]
[323764311,1714257040068,-790.0,0.00016016,2]
[323764312,1714257040077,-644.0,0.00016016,2]
[323764313,1714257040231,-200.0,0.00016077,2]
[323764314,1714257040257,-200.0,0.00016077,2]
[323764315,1714257040266,-2927.2044767,0.00016151,2]
[323764316,1714257040276,-508.65,0.00016341,2]
[323764317,1714257040285,-313.7,0.00016345,2]
[323764318,1714257040295,-1118.76,0.00016373,2]
[323764319,1714257040305,-624.0,0.00016411,2]
[323764320,1714257040326,-200.0,0.00016438,2]
[323764321,1714257040335,-300.0,0.00016438,2]
[323764322,1714257040348,-156.12701639,0.00016442,2]
[323764323,1714257040357,-200.0,0.00016474,2]
[323764324,1714257040366,-2349.62860644,0.000165,2]
[323764325,1714257040375,-150.0,0.000165,2]
[323764326,1714257040384,-150.0,0.000165,2]
[323764327,1714257040394,-167.0,0.00016702,2]
[323764328,1714257040404,-178.66,0.00016712,2]
[323764329,1714257040414,-200.0,0.00016872,2]
[323764330,1714257040423,-200.0,0.00016872,2]
[323764331,1714257040432,-150.39209227,0.000169,2]
[323764332,1714257040442,-153.74189847,0.00016903,2]
[323764333,1714257040451,-153.99666678,0.00016963,2]
[323764334,1714257040461,-1013.82,0.0001699,2]
[323764335,1714257040473,-2000.0,0.00017,2]
[323764336,1714257040482,-150.0,0.00017,2]
[323764337,1714257040492,-150.0,0.00017,2]
[323764338,1714257040501,-1064.82,0.00017013,2]
[323764339,1714257040511,-153.81143221,0.00017028,2]
[323764340,1714257040520,-200.0,0.0001707,2]
[323764341,1714257040529,-624.0,0.00017096,2]
[323764343,1714257040539,-153.81143221,0.00017151,2]
[323764345,1714257040548,-535.02688076,0.00017159,2]
[323764347,1714257040561,-155.18,0.00017327,10]
[323764349,1714257040570,-191.48,0.00017478,2]
[323764351,1714257040579,-153.81143221,0.00017497,2]
[323764353,1714257040588,-150.0,0.000175,2]
[323764355,1714257040597,-150.0,0.000175,2]
[323764357,1714257040606,-150.39209227,0.00017556,2]
[323764359,1714257040616,-167.0,0.00017573,2]
[323764361,1714257040625,-300.42,0.00017642,2]
[323764363,1714257040634,-200.0,0.00017667,2]
[323764365,1714257040643,-287.125441,0.00017667,2]
[323764367,1714257040652,-200.0,0.00017667,2]
[323764369,1714257040661,-200.0,0.00017667,2]
[323764371,1714257040670,-313.7,0.0001769,2]
[323764373,1714257040679,-7706.68,0.000177,2]
[323764375,1714257040689,-2079.73855388,0.000177,2]
[323764378,1714257040702,-5626.94144612,0.000177,2]
[323764380,1714257040712,-7706.68,0.000177,2]
[323764382,1714257040721,-7706.68,0.000177,2]
[323764384,1714257040730,-7706.68,0.000177,2]
[323764385,1714257040739,-7706.68,0.000177,2]
[323764388,1714257040749,-7706.68,0.000177,2]
[323764389,1714257040758,-7706.68,0.000177,2]
[323764392,1714257040768,-7706.68,0.000177,2]
[323764393,1714257040777,-7706.68,0.000177,2]
[323764395,1714257040786,-7706.68,0.000177,2]
[323764398,1714257040796,-7706.68,0.000177,2]
[323764399,1714257040805,-7706.68,0.000177,2]
[323764401,1714257040817,-7706.68,0.000177,2]
[323764404,1714257040827,-7706.68,0.000177,2]
[323764406,1714257040836,-2635.13299868,0.000177,2]
[323764408,1714257040848,-5071.54700132,0.000177,2]
[323764410,1714257040858,-7706.68,0.000177,2]
[323764412,1714257040867,-7706.68,0.000177,2]
[323764413,1714257040876,-7706.68,0.000177,2]
[323764415,1714257040885,-2581.14291892,0.000177,2]
[323764419,1714257040909,-5125.53708108,0.000177,2]
[323764421,1714257040919,-497.1229,0.0001771,2]
[323764423,1714257040929,-2927.2044767,0.00017776,2]
[323764425,1714257040938,-624.0,0.00017781,2]
[323764427,1714257040947,-483.0,0.000178,2]
[323764429,1714257040957,-483.0,0.000178,2]
[323764431,1714257040966,-2227.15922637,0.000178,2]
[323764433,1714257040976,-2359.48463868,0.00017808,2]
[323764435,1714257040985,-255.3668917,0.00017808,2]
[323764437,1714257040994,-155.07867021,0.00017808,2]
[323764439,1714257041003,-155.0,0.00017808,2]
[323764441,1714257041013,-155.0,0.00017808,2]
[323764443,1714257041022,-286.32224343,0.00017808,2]
[323764445,1714257041031,-175.12467907,0.00017809,2]
[323764447,1714257041041,-1760.85491199,0.00017809,2]
[323764449,1714257041050,-508.65,0.00017826,2]
[323764451,1714257041061,-233.51901012,0.00017878,2]
[323764453,1714257041071,-11439.29701783,0.00017879,2]
[323764455,1714257041082,-8157.13396545,0.00017879,2]
[323764472,1714257041225,-150.85,0.00014,2]
[323764474,1714257041234,-6188.45,0.00017879,2]
[323764476,1714257041245,-15751.21024325,0.00017879,2]
[323764478,1714257041257,-2114.79778006,0.00017879,2]
[323764481,1714257041269,-2538.78599999,0.00017879,2]
[323764484,1714257041293,-150.85,0.00014,2]
[323764486,1714257041302,-6177.90319065,0.00017879,2]
[323764537,1714257041775,-150.85,0.00014,2]
[323764539,1714257041785,-150.85,0.00014,2]
[323764541,1714257041794,-150.85,0.00014,2]
[323764543,1714257041803,-139.1,0.00014,2]
[323764546,1714257041824,-11.75,0.00014,2]
[323764548,1714257041833,-150.85,0.00014,2]
[323764550,1714257041842,-150.85,0.00014,2]
[323764552,1714257041851,-150.85,0.00014,2]
[323764554,1714257041861,-150.85,0.00014,2]
[323764556,1714257041870,-150.85,0.0001499,2]
[323764558,1714257041879,-150.85,0.0001769,2]
[323764560,1714257041888,-150.85,0.0001769,2]
[323764562,1714257041897,-150.85,0.0001769,2]
[323764564,1714257041906,-290.43,0.0001769,3]
[323764566,1714257041915,-150.85,0.0001769,2]
[323764568,1714257041924,-8535.90163564,0.00017879,2]
[323764569,1714257041936,-133756.81387317,0.00017879,2]
[323764570,1714257041945,-5495.4949596,0.0001788,2]
[323764571,1714257041956,-84547.92139503,0.0001788,2]
[323764572,1714257041965,-90043.41635457,0.0001788,2]
[323764573,1714257041975,-90043.41635457,0.0001788,2]
[323764574,1714257041984,-90043.41635457,0.0001788,2]
[323764575,1714257041993,-14451.39420956,0.0001788,2]
[323764576,1714257042002,-14451.39420955,0.0001788,2]
[323764577,1714257042012,-14451.39420955,0.0001788,2]
[323764579,1714257042021,-14451.39420955,0.0001788,2]
[323764581,1714257042030,-167.0,0.00017921,2]
[323764583,1714257042039,-158.93910972,0.00017946,2]
[323764585,1714257042048,-300.91,0.00017973,2]
[323764587,1714257042057,-155.41334563,0.00017977,2]
[323764589,1714257042066,-1013.82,0.00017985,2]
[323764591,1714257042075,-1000.0,0.00018,2]
[323764593,1714257042084,-300.97944005,0.00018,2]
[323764595,1714257042093,-3071.20810051,0.00018,2]
[323764597,1714257042102,-2000.0,0.00018,2]
[323764599,1714257042111,-865.73,0.00018,5]
[323764601,1714257042120,-1106.10848148,0.00018,2]
[323764602,1714257042129,-1551.37771175,0.00018,2]
[323764603,1714257042138,-733.0,0.00018,5]
[323764604,1714257042146,-395.869977,0.00018,2]
[323764605,1714257042156,-395.869977,0.00018,2]
[323764606,1714257042165,-437.62459106,0.00018,2]
[323764607,1714257042194,-150.85,0.00017869,2]
[323764608,1714257042204,-1067.57612394,0.00018,2]
[323764609,1714257042213,-150.0,0.00018,2]
[323764610,1714257042222,-3000.0,0.00018,2]
[323764611,1714257042231,-150.0,0.00018,2]
[323764612,1714257042240,-150.39209227,0.00018015,2]
[323764613,1714257042249,-1654.64091114,0.000181,2]
[323764614,1714257042258,-153.81143221,0.00018134,2]
[323764615,1714257042267,-158.93910972,0.000182,2]
[323764616,1714257042277,-440.19831586,0.00018295,2]
[323764617,1714257042310,-150.85,0.00017869,2]
[323764618,1714257042321,-4559.80168414,0.00018295,2]
[323764619,1714257042330,-155.41334563,0.00018353,2]
[323764620,1714257042339,-2893.66,0.00018369,2]
[323764621,1714257042349,-7240.27497023,0.00018377,2]
[323764695,1714257043586,-150.85,0.00017869,2]
[323764697,1714257043594,-150.85,0.00017869,2]
[323764698,1714257043604,-150.85,0.00017869,2]
[323764699,1714257043613,-150.85,0.0001787,2]
[323764700,1714257043622,-150.85,0.0001787,2]
[323764702,1714257043633,-150.85,0.0001787,2]
[323764704,1714257043642,-150.85,0.0001787,2]
[323764705,1714257043652,-150.85,0.0001787,2]
[323764706,1714257043661,-150.85,0.0001787,2]
[323764708,1714257043669,-150.85,0.0001787,2]
[323764709,1714257043679,-150.85,0.0001787,2]
[323764710,1714257043688,-150.85,0.0001787,2]
[323764711,1714257043699,-150.85,0.0001787,2]
[323764712,1714257043709,-150.85,0.00018359,2]
[323764713,1714257043719,-150.85,0.00018367,2]
[323764714,1714257043729,-150.85,0.00018367,2]
[323764715,1714257043739,-82803.14138434,0.00018377,2]
[323764716,1714257043749,-150.39209227,0.00018385,2]
[323764717,1714257043758,-1538.68,0.00018411,2]
[323764718,1714257043767,-14451.39420955,0.00018419,2]
[323764719,1714257043776,-153.81143221,0.00018429,2]
[323764720,1714257043785,-167.0,0.00018444,2]
[323764721,1714257043795,-167.0,0.00018444,2]
[323764722,1714257043806,-5000.0,0.00018455,2]
[323764723,1714257043816,-624.0,0.00018466,2]
[323764724,1714257043826,-5000.0,0.00018484,2]
[323764725,1714257043835,-1108.5,0.000185,5]
[323764726,1714257043844,-733.0,0.000185,6]
[323764727,1714257043854,-1500.0,0.000185,2]
[323764728,1714257043864,-150.0,0.000185,2]
[323764729,1714257043873,-150.0,0.000185,2]
[323764730,1714257043881,-153.81143221,0.00018534,2]
[323764731,1714257043891,-150.85,0.00018562,2]
[323764732,1714257043901,-5000.0,0.00018572,2]
[323764733,1714257043910,-535.02688076,0.00018579,2]
[323764734,1714257043920,-4631.5,0.00018588,2]
[323764735,1714257043930,-1118.76,0.00018637,2]
[323764736,1714257043940,-10000.0,0.00018729,2]
[323764737,1714257043949,-5000.0,0.0001873,2]
[323764738,1714257043958,-10000.0,0.00018806,2]
[323764739,1714257043967,-150.39209227,0.00018817,2]
[323764740,1714257043977,-2541.97377616,0.00018825,2]
[323764741,1714257043986,-500.0,0.00018878,2]
[323764742,1714257043996,-150.85,0.0001889,2]
[323764743,1714257044006,-599.99,0.000189,2]
[323764744,1714257044016,-10000.0,0.000189,2]
[323764745,1714257044025,-5000.0,0.00018942,2]
[323764746,1714257044036,-5000.0,0.00018955,2]
[323764747,1714257044045,-150.39209227,0.00018973,2]
[323764748,1714257044055,-1013.82,0.0001898,2]
[323764749,1714257044064,-10046.15461245,0.00019,2]
[323764750,1714257044073,-411.05908589,0.00019,2]
[323764751,1714257044084,-155.0,0.00019,2]
[323764752,1714257044093,-2000.0,0.00019,2]
[323764753,1714257044103,-1031.38081978,0.00019,2]
[323764754,1714257044113,-733.0,0.00019,6]
[323764755,1714257044124,-1500.0,0.00019,2]
[323764756,1714257044133,-150.0,0.00019,2]
[323764757,1714257044144,-150.0,0.00019,2]
[323764758,1714257044155,-313.7,0.00019035,2]
[323764759,1714257044165,-155.57596734,0.00019057,2]
[323764760,1714257044174,-580.86,0.0001906,3]
[323764761,1714257044184,-150.85,0.00019076,2]
[323764762,1714257044195,-150.85,0.00019076,2]
[323764763,1714257044204,-9450.58046268,0.00019086,2]
[323764764,1714257044220,-63052.17927887,0.00019086,2]
[323764765,1714257044233,-624.0,0.00019151,2]
[323764766,1714257044243,-150.85,0.00019166,2]
[323764767,1714257044253,-157.75280721,0.0001917,2]
[323764768,1714257044263,-226020.11510381,0.00019176,2]
[323764769,1714257044273,-500.0,0.00019178,2]
[323764770,1714257044283,-500.0,0.00019178,2]
[323764771,1714257044293,-500.0,0.00019178,2]
[323764772,1714257044303,-500.0,0.00019178,2]
[323764773,1714257044314,-500.0,0.00019178,2]
[323764774,1714257044324,-500.0,0.00019178,2]
[323764775,1714257044333,-366.84983692,0.00019178,2]
[323764776,1714257044342,-500.0,0.00019178,2]
[323764777,1714257044353,-500.0,0.00019178,2]
[323764778,1714257044363,-500.0,0.00019178,2]
[323764779,1714257044373,-500.0,0.00019178,2]
[323764780,1714257044384,-500.0,0.00019178,2]
[323764781,1714257044395,-500.0,0.00019178,2]
[323764782,1714257044406,-500.0,0.00019178,2]
[323764783,1714257044415,-500.0,0.00019178,2]
[323764784,1714257044424,-500.0,0.00019178,2]
[323764785,1714257044433,-500.0,0.00019178,2]